[Event "Titled Tuesday Blitz May 31 Early 2022"]
[White "Stankovic, Ivan G"]
[Black "Tong, Hai Anh"]
[WhiteFideId "902837"]
[BlackFideId "12412805"]
[WhiteElo "2195"]
[BlackElo "1467"]
[Result "0-1"]
[Round "10"]
[TimeControl "180+1"]
[Date "2022.06.01"]
[WhiteClock "0:00:03"]
[BlackClock "0:00:05"]

1. e4 {[%clk 0:03:00]}  c6 {[%clk 0:02:59]} 2. d4 {[%clk 0:03:00]}  d5 {[%clk 0:03:00]} 3. e5 {[%clk 0:03:00]}  c5 {[%clk 0:03:00]} 4. dxc5 {[%clk 0:03:00]}  Nc6 {[%clk 0:02:58]} 5. Nf3 {[%clk 0:03:00]}  Bg4 {[%clk 0:02:54]} 6. Bb5 {[%clk 0:02:59]}  e6 {[%clk 0:02:54]} 7. Be3 {[%clk 0:02:54]}  Qc7 {[%clk 0:02:53]} 8. Bd4 {[%clk 0:02:12]}  Ne7 {[%clk 0:02:43]} 9. c3 {[%clk 0:02:07]}  Nf5 {[%clk 0:02:40]} 10. Nbd2 {[%clk 0:02:02]}  Be7 {[%clk 0:02:37]} 11. h3 {[%clk 0:01:55]}  Bh5 {[%clk 0:02:35]} 12. Bxc6+ {[%clk 0:01:51]}  Qxc6 {[%clk 0:02:27]} 13. b4 {[%clk 0:01:50]}  Bg6 {[%clk 0:02:22]} 14. O-O {[%clk 0:01:39]}  O-O {[%clk 0:02:19]} 15. g4 {[%clk 0:01:35]}  Nh4 {[%clk 0:02:18]} 16. Nxh4 {[%clk 0:01:35]}  Bxh4 {[%clk 0:02:19]} 17. f4 {[%clk 0:01:28]}  f6 {[%clk 0:02:03]} 18. exf6 {[%clk 0:01:22]}  Bxf6 {[%clk 0:02:01]} 19. Nf3 {[%clk 0:01:15]}  Rae8 {[%clk 0:01:54]} 20. Ne5 {[%clk 0:01:11]}  Bxe5 {[%clk 0:01:53]} 21. Bxe5 {[%clk 0:01:11]}  Be4 {[%clk 0:01:43]} 22. Qd4 {[%clk 0:01:11]}  Qd7 {[%clk 0:01:36]} 23. Rae1 {[%clk 0:01:08]}  Qe7 {[%clk 0:01:34]} 24. Rxe4 {[%clk 0:01:05]}  dxe4 {[%clk 0:01:33]} 25. Qxe4 {[%clk 0:01:06]}  Qd7 {[%clk 0:01:27]} 26. Bd6 {[%clk 0:01:04]}  Rf7 {[%clk 0:01:28]} 27. Re1 {[%clk 0:01:02]}  Qc6 {[%clk 0:01:17]} 28. Qxc6 {[%clk 0:00:57]}  bxc6 {[%clk 0:01:18]} 29. Kg2 {[%clk 0:00:56]}  g6 {[%clk 0:01:16]} 30. Kf3 {[%clk 0:00:55]}  a5 {[%clk 0:01:13]} 31. Ke4 {[%clk 0:00:49]}  axb4 {[%clk 0:01:12]} 32. cxb4 {[%clk 0:00:50]}  Ra7 {[%clk 0:01:12]} 33. Re2 {[%clk 0:00:47]}  Rea8 {[%clk 0:01:09]} 34. Ke5 {[%clk 0:00:43]}  Kf7 {[%clk 0:01:08]} 35. b5 {[%clk 0:00:40]}  cxb5 {[%clk 0:01:08]} 36. Rb2 {[%clk 0:00:40]}  Ra5 {[%clk 0:00:39]} 37. Bc7 {[%clk 0:00:37]}  Rxa2 {[%clk 0:00:37]} 38. Rxb5 {[%clk 0:00:37]}  Re2+ {[%clk 0:00:36]} 39. Kd6 {[%clk 0:00:36]}  Ra6+ {[%clk 0:00:36]} 40. Rb6 {[%clk 0:00:36]}  Ra7 {[%clk 0:00:29]} 41. Kc6 {[%clk 0:00:30]}  Rc2 {[%clk 0:00:26]} 42. g5 {[%clk 0:00:29]}  Ra5 {[%clk 0:00:16]} 43. Bd6 {[%clk 0:00:29]}  Ra7 {[%clk 0:00:15]} 44. Rb7+ {[%clk 0:00:26]}  Rxb7 {[%clk 0:00:15]} 45. Kxb7 {[%clk 0:00:27]}  Ke8 {[%clk 0:00:16]} 46. c6 {[%clk 0:00:20]}  Kd8 {[%clk 0:00:16]} 47. Bc7+ {[%clk 0:00:19]}  Ke7 {[%clk 0:00:16]} 48. Be5 {[%clk 0:00:19]}  Kd8 {[%clk 0:00:17]} 49. Bf6+ {[%clk 0:00:15]}  Ke8 {[%clk 0:00:17]} 50. c7 {[%clk 0:00:15]}  Kd7 {[%clk 0:00:17]} 51. Be5 {[%clk 0:00:14]}  Rb2+ {[%clk 0:00:18]} 52. Ka6 {[%clk 0:00:14]}  Rc2 {[%clk 0:00:17]} 53. Kb7 {[%clk 0:00:14]}  Rc1 {[%clk 0:00:17]} 54. Ka6 {[%clk 0:00:11]}  Kc8 {[%clk 0:00:16]} 55. Kb6 {[%clk 0:00:10]}  Rh1 {[%clk 0:00:16]} 56. Kc6 {[%clk 0:00:10]}  Rxh3 {[%clk 0:00:16]} 57. Kd6 {[%clk 0:00:11]}  h6 {[%clk 0:00:09]} 58. Kxe6 {[%clk 0:00:02]}  hxg5 {[%clk 0:00:08]} 59. fxg5 {[%clk 0:00:03]}  Rf3 {[%clk 0:00:05]} 60. Bd6 {[%clk 0:00:03]}  Rf5 {[%clk 0:00:05]} 0-1


[Site "https://www.chess.com"]

[Event "Titled Tuesday Blitz May 31 Early 2022"]
[White "Stevens, Christian"]
[Black "Hua, Lefong"]
[WhiteFideId "2604450"]
[BlackFideId "2602253"]
[WhiteElo "2494"]
[BlackElo "2624"]
[Result "1/2-1/2"]
[Round "10"]
[TimeControl "180+1"]
[Date "2022.06.01"]
[WhiteClock "0:00:03"]
[BlackClock "0:00:41"]

1. d4 {[%clk 0:03:00]}  Nf6 {[%clk 0:03:00]} 2. c4 {[%clk 0:02:58]}  c5 {[%clk 0:03:00]} 3. d5 {[%clk 0:02:57]}  e6 {[%clk 0:03:00]} 4. Nc3 {[%clk 0:02:57]}  exd5 {[%clk 0:03:01]} 5. cxd5 {[%clk 0:02:57]}  d6 {[%clk 0:03:02]} 6. e4 {[%clk 0:02:56]}  g6 {[%clk 0:03:02]} 7. f4 {[%clk 0:02:56]}  Bg7 {[%clk 0:03:03]} 8. Nf3 {[%clk 0:02:56]}  O-O {[%clk 0:03:01]} 9. Bd3 {[%clk 0:02:56]}  Bg4 {[%clk 0:03:01]} 10. O-O {[%clk 0:02:56]}  a6 {[%clk 0:03:01]} 11. a4 {[%clk 0:02:47]}  Nbd7 {[%clk 0:03:01]} 12. h3 {[%clk 0:02:46]}  Bxf3 {[%clk 0:03:01]} 13. Qxf3 {[%clk 0:02:46]}  Ne8 {[%clk 0:03:02]} 14. Kh1 {[%clk 0:02:44]}  Nc7 {[%clk 0:02:58]} 15. a5 {[%clk 0:02:30]}  Rb8 {[%clk 0:02:54]} 16. e5 {[%clk 0:01:56]}  dxe5 {[%clk 0:02:54]} 17. f5 {[%clk 0:01:57]}  b5 {[%clk 0:02:43]} 18. d6 {[%clk 0:01:24]}  Ne8 {[%clk 0:02:40]} 19. Ne4 {[%clk 0:01:19]}  c4 {[%clk 0:02:21]} 20. Bc2 {[%clk 0:01:12]}  Ndf6 {[%clk 0:02:08]} 21. Bg5 {[%clk 0:01:05]}  h6 {[%clk 0:02:05]} 22. Bxf6 {[%clk 0:00:38]}  Nxf6 {[%clk 0:02:00]} 23. fxg6 {[%clk 0:00:38]}  fxg6 {[%clk 0:01:58]} 24. Rad1 {[%clk 0:00:31]}  Qxa5 {[%clk 0:01:44]} 25. Nxf6+ {[%clk 0:00:26]}  Bxf6 {[%clk 0:01:39]} 26. Bxg6 {[%clk 0:00:23]}  Qd8 {[%clk 0:01:25]} 27. Qg4 {[%clk 0:00:20]}  Bg7 {[%clk 0:01:22]} 28. Qe6+ {[%clk 0:00:18]}  Kh8 {[%clk 0:01:21]} 29. Rxf8+ {[%clk 0:00:14]}  Qxf8 {[%clk 0:01:22]} 30. d7 {[%clk 0:00:12]}  Rd8 {[%clk 0:01:22]} 31. Be8 {[%clk 0:00:11]}  Qf6 {[%clk 0:01:19]} 32. Qxf6 {[%clk 0:00:10]}  Bxf6 {[%clk 0:01:19]} 33. Rd6 {[%clk 0:00:10]}  Kg7 {[%clk 0:01:18]} 34. Rxa6 {[%clk 0:00:09]}  e4 {[%clk 0:01:17]} 35. Rb6 {[%clk 0:00:09]}  Bxb2 {[%clk 0:01:17]} 36. Rxb5 {[%clk 0:00:09]}  c3 {[%clk 0:01:17]} 37. Rc5 {[%clk 0:00:09]}  Kf6 {[%clk 0:01:09]} 38. Kg1 {[%clk 0:00:09]}  Ke7 {[%clk 0:01:08]} 39. Kf2 {[%clk 0:00:10]}  Kd6 {[%clk 0:00:58]} 40. Rc8 {[%clk 0:00:09]}  Ke7 {[%clk 0:00:58]} 41. Ke3 {[%clk 0:00:09]}  Bc1+ {[%clk 0:00:48]} 42. Kxe4 {[%clk 0:00:09]}  Bd2 {[%clk 0:00:49]} 43. Kd3 {[%clk 0:00:09]}  Be1 {[%clk 0:00:49]} 44. g4 {[%clk 0:00:09]}  Bd2 {[%clk 0:00:48]} 45. h4 {[%clk 0:00:08]}  Be1 {[%clk 0:00:46]} 46. g5 {[%clk 0:00:07]}  hxg5 {[%clk 0:00:47]} 47. hxg5 {[%clk 0:00:07]}  Bh4 {[%clk 0:00:46]} 48. g6 {[%clk 0:00:07]}  Bf6 {[%clk 0:00:46]} 49. Ke4 {[%clk 0:00:04]}  Bg7 {[%clk 0:00:46]} 50. Kd3 {[%clk 0:00:04]}  Bf6 {[%clk 0:00:44]} 51. Rxc3 {[%clk 0:00:03]}  Bxc3 {[%clk 0:00:41]} 52. Kxc3 {[%clk 0:00:04]}  Kf6 {[%clk 0:00:40]} 53. Kc4 {[%clk 0:00:04]}  Rxd7 {[%clk 0:00:41]} 54. Bxd7 {[%clk 0:00:03]}  Kxg6 {[%clk 0:00:41]} 1/2-1/2


[Site "https://www.chess.com"]

[Event "Titled Tuesday Blitz May 31 Early 2022"]
[White "Vidit, Santosh Gujrathi"]
[Black "Vokhidov, Shamsiddin"]
[WhiteFideId "5029465"]
[BlackFideId "14204223"]
[WhiteElo "2654"]
[BlackElo "2611"]
[Result "1-0"]
[Round "10"]
[TimeControl "180+1"]
[Date "2022.05.31"]
[WhiteClock "0:02:35"]
[BlackClock "0:02:07"]

1. e4 {[%clk 0:03:00]}  c5 {[%clk 0:03:00]} 2. Nf3 {[%clk 0:03:01]}  d6 {[%clk 0:03:00]} 3. d4 {[%clk 0:03:01]}  cxd4 {[%clk 0:03:01]} 4. Nxd4 {[%clk 0:03:02]}  Nf6 {[%clk 0:03:02]} 5. Nc3 {[%clk 0:03:03]}  Nc6 {[%clk 0:03:02]} 6. Bg5 {[%clk 0:03:03]}  e6 {[%clk 0:03:03]} 7. Qd2 {[%clk 0:03:03]}  a6 {[%clk 0:03:03]} 8. O-O-O {[%clk 0:03:04]}  Bd7 {[%clk 0:03:03]} 9. f3 {[%clk 0:03:04]}  Nxd4 {[%clk 0:03:02]} 10. Qxd4 {[%clk 0:03:04]}  h6 {[%clk 0:03:03]} 11. Be3 {[%clk 0:03:04]}  Bc6 {[%clk 0:03:03]} 12. Kb1 {[%clk 0:03:04]}  d5 {[%clk 0:03:03]} 13. e5 {[%clk 0:03:02]}  Nd7 {[%clk 0:03:03]} 14. f4 {[%clk 0:03:03]}  Bc5 {[%clk 0:03:03]} 15. Qd2 {[%clk 0:03:03]}  Bxe3 {[%clk 0:03:04]} 16. Qxe3 {[%clk 0:03:03]}  g5 {[%clk 0:03:05]} 17. h4 {[%clk 0:02:48]}  gxf4 {[%clk 0:03:02]} 18. Qxf4 {[%clk 0:02:49]}  Qc7 {[%clk 0:03:02]} 19. Re1 {[%clk 0:02:49]}  f6 {[%clk 0:03:02]} 20. Qg4 {[%clk 0:02:48]}  Nxe5 {[%clk 0:02:36]} 21. Qxe6+ {[%clk 0:02:48]}  Qe7 {[%clk 0:02:36]} 22. Qf5 {[%clk 0:02:49]}  Bd7 {[%clk 0:02:29]} 23. Qh5+ {[%clk 0:02:46]}  Qf7 {[%clk 0:02:28]} 24. Rxe5+ {[%clk 0:02:44]}  Kf8 {[%clk 0:02:15]} 25. Qxf7+ {[%clk 0:02:43]}  Kxf7 {[%clk 0:02:16]} 26. Rxd5 {[%clk 0:02:44]}  Bc6 {[%clk 0:02:16]} 27. Rd2 {[%clk 0:02:44]}  Rae8 {[%clk 0:02:15]} 28. Bc4+ {[%clk 0:02:44]}  Kg7 {[%clk 0:02:15]} 29. Bd5 {[%clk 0:02:44]}  Rd8 {[%clk 0:02:15]} 30. Rhd1 {[%clk 0:02:44]}  Be8 {[%clk 0:02:14]} 31. Bxb7 {[%clk 0:02:44]}  Rb8 {[%clk 0:02:15]} 32. Bxa6 {[%clk 0:02:44]}  Bh5 {[%clk 0:02:14]} 33. Rd7+ {[%clk 0:02:44]}  Kg6 {[%clk 0:02:15]} 34. Bd3+ {[%clk 0:02:43]}  f5 {[%clk 0:02:15]} 35. Rf1 {[%clk 0:02:43]}  Bg4 {[%clk 0:02:15]} 36. Nd5 {[%clk 0:02:43]}  Rhf8 {[%clk 0:02:15]} 37. Ne3 {[%clk 0:02:43]}  Kh5 {[%clk 0:02:14]} 38. Nxg4 {[%clk 0:02:42]}  fxg4 {[%clk 0:02:15]} 39. Rxf8 {[%clk 0:02:41]}  Rxf8 {[%clk 0:02:16]} 40. a4 {[%clk 0:02:38]}  Kxh4 {[%clk 0:02:16]} 41. a5 {[%clk 0:02:38]}  Kg3 {[%clk 0:02:16]} 42. Be4 {[%clk 0:02:35]}  h5 {[%clk 0:02:12]} 43. a6 {[%clk 0:02:35]}  Kf4 {[%clk 0:02:10]} 44. Bb7 {[%clk 0:02:35]}  h4 {[%clk 0:02:07]} 45. a7 {[%clk 0:02:35]} 1-0


[Site "https://www.chess.com"]

[Event "Titled Tuesday Blitz May 31 Early 2022"]
[White "Vlachos, Anatole"]
[Black "Gaehwiler, Gabriel"]
[WhiteFideId "26093189"]
[BlackFideId "1314530"]
[WhiteElo "2361"]
[BlackElo "2383"]
[Result "1/2-1/2"]
[Round "10"]
[TimeControl "180+1"]
[Date "2022.05.31"]
[WhiteClock "0:00:39"]
[BlackClock "0:00:44"]

1. Nf3 {[%clk 0:02:56]}  Nf6 {[%clk 0:02:59]} 2. g3 {[%clk 0:02:57]}  b6 {[%clk 0:02:59]} 3. Bg2 {[%clk 0:02:58]}  Bb7 {[%clk 0:03:00]} 4. O-O {[%clk 0:02:58]}  g6 {[%clk 0:03:00]} 5. d3 {[%clk 0:02:59]}  Bg7 {[%clk 0:03:00]} 6. e4 {[%clk 0:03:00]}  O-O {[%clk 0:03:01]} 7. Re1 {[%clk 0:03:00]}  c5 {[%clk 0:03:00]} 8. e5 {[%clk 0:03:00]}  Ne8 {[%clk 0:02:59]} 9. c3 {[%clk 0:02:59]}  d6 {[%clk 0:02:59]} 10. d4 {[%clk 0:02:59]}  cxd4 {[%clk 0:02:55]} 11. cxd4 {[%clk 0:02:59]}  dxe5 {[%clk 0:02:55]} 12. dxe5 {[%clk 0:02:58]}  Qxd1 {[%clk 0:02:52]} 13. Rxd1 {[%clk 0:02:58]}  Nc6 {[%clk 0:02:52]} 14. Nc3 {[%clk 0:02:53]}  Rc8 {[%clk 0:02:43]} 15. Bf4 {[%clk 0:02:39]}  Nc7 {[%clk 0:02:41]} 16. Nd4 {[%clk 0:02:30]}  Ne6 {[%clk 0:02:30]} 17. Nxc6 {[%clk 0:02:30]}  Bxc6 {[%clk 0:02:30]} 18. Bxc6 {[%clk 0:02:30]}  Rxc6 {[%clk 0:02:31]} 19. Nd5 {[%clk 0:02:31]}  Re8 {[%clk 0:02:15]} 20. h4 {[%clk 0:02:30]}  Nxf4 {[%clk 0:01:47]} 21. gxf4 {[%clk 0:02:29]}  f6 {[%clk 0:01:34]} 22. exf6 {[%clk 0:02:25]}  Bxf6 {[%clk 0:01:33]} 23. Nxf6+ {[%clk 0:02:25]}  Rxf6 {[%clk 0:01:33]} 24. Rd4 {[%clk 0:02:26]}  Kf7 {[%clk 0:01:28]} 25. Rc1 {[%clk 0:02:25]}  Rd6 {[%clk 0:01:20]} 26. Re4 {[%clk 0:02:11]}  Rd7 {[%clk 0:01:18]} 27. Kg2 {[%clk 0:01:42]}  Red8 {[%clk 0:01:18]} 28. Kg3 {[%clk 0:01:33]}  Rd3+ {[%clk 0:01:18]} 29. f3 {[%clk 0:01:33]}  R8d7 {[%clk 0:01:18]} 30. Rc2 {[%clk 0:01:16]}  Rd1 {[%clk 0:01:12]} 31. Re5 {[%clk 0:01:12]}  Rg1+ {[%clk 0:01:12]} 32. Kh2 {[%clk 0:01:09]}  Rf1 {[%clk 0:01:06]} 33. Kg2 {[%clk 0:01:08]}  Rfd1 {[%clk 0:01:06]} 34. Rce2 {[%clk 0:01:04]}  R1d6 {[%clk 0:01:01]} 35. f5 {[%clk 0:01:01]}  Rf6 {[%clk 0:00:59]} 36. fxg6+ {[%clk 0:01:00]}  hxg6 {[%clk 0:00:59]} 37. Kg3 {[%clk 0:01:01]}  Rc7 {[%clk 0:00:58]} 38. f4 {[%clk 0:00:58]}  Rd7 {[%clk 0:00:58]} 39. R2e3 {[%clk 0:00:58]}  Rc7 {[%clk 0:00:54]} 40. Kg4 {[%clk 0:00:55]}  Rd7 {[%clk 0:00:53]} 41. b4 {[%clk 0:00:46]}  Rc7 {[%clk 0:00:44]} 42. b5 {[%clk 0:00:44]}  Rd7 {[%clk 0:00:44]} 43. R3e4 {[%clk 0:00:38]}  Rc7 {[%clk 0:00:44]} 44. Re3 {[%clk 0:00:38]}  Rd7 {[%clk 0:00:44]} 45. R3e4 {[%clk 0:00:38]}  Rc7 {[%clk 0:00:44]} 46. Re3 {[%clk 0:00:39]} 1/2-1/2


[Site "https://www.chess.com"]

[Event "Titled Tuesday Blitz May 31 Early 2022"]
[White "Wagner, Dennis"]
[Black "Nasir, Zehn"]
[WhiteFideId "24650684"]
[BlackFideId "2613239"]
[WhiteElo "2355"]
[BlackElo "1993"]
[Result "0-1"]
[Round "10"]
[TimeControl "180+1"]
[Date "2022.05.31"]
[WhiteClock "0:00:03"]
[BlackClock "0:00:03"]

1. e4 {[%clk 0:03:00]}  c6 {[%clk 0:03:00]} 2. c4 {[%clk 0:02:56]}  d5 {[%clk 0:03:01]} 3. exd5 {[%clk 0:02:55]}  cxd5 {[%clk 0:03:00]} 4. d4 {[%clk 0:02:56]}  Nf6 {[%clk 0:03:00]} 5. Nc3 {[%clk 0:02:56]}  e6 {[%clk 0:03:00]} 6. Nf3 {[%clk 0:02:55]}  Bb4 {[%clk 0:02:57]} 7. cxd5 {[%clk 0:02:49]}  Nxd5 {[%clk 0:02:57]} 8. Bd2 {[%clk 0:02:49]}  Nc6 {[%clk 0:02:56]} 9. Bd3 {[%clk 0:02:49]}  O-O {[%clk 0:02:44]} 10. O-O {[%clk 0:02:50]}  Nf6 {[%clk 0:02:40]} 11. Be3 {[%clk 0:02:38]}  b6 {[%clk 0:02:34]} 12. Rc1 {[%clk 0:02:25]}  Bb7 {[%clk 0:02:34]} 13. Bb1 {[%clk 0:02:26]}  Ne7 {[%clk 0:02:23]} 14. Ne5 {[%clk 0:02:23]}  Ng6 {[%clk 0:02:19]} 15. Qe2 {[%clk 0:02:15]}  Rc8 {[%clk 0:02:13]} 16. Rfd1 {[%clk 0:02:09]}  Nd5 {[%clk 0:02:10]} 17. Qd3 {[%clk 0:01:28]}  Nxe3 {[%clk 0:01:52]} 18. fxe3 {[%clk 0:01:27]}  Qg5 {[%clk 0:01:45]} 19. Ne4 {[%clk 0:01:23]}  Qf5 {[%clk 0:01:15]} 20. Rxc8 {[%clk 0:00:53]}  Rxc8 {[%clk 0:01:13]} 21. Nxg6 {[%clk 0:00:44]}  hxg6 {[%clk 0:01:12]} 22. a3 {[%clk 0:00:40]}  Be7 {[%clk 0:01:09]} 23. Rf1 {[%clk 0:00:39]}  Qd5 {[%clk 0:00:45]} 24. Qe2 {[%clk 0:00:39]}  f5 {[%clk 0:00:40]} 25. Nc3 {[%clk 0:00:37]}  Qd6 {[%clk 0:00:39]} 26. Ba2 {[%clk 0:00:37]}  Bf6 {[%clk 0:00:35]} 27. Qb5 {[%clk 0:00:33]}  a6 {[%clk 0:00:32]} 28. Qb3 {[%clk 0:00:32]}  Re8 {[%clk 0:00:28]} 29. Na4 {[%clk 0:00:28]}  b5 {[%clk 0:00:25]} 30. Nc3 {[%clk 0:00:25]}  Qc6 {[%clk 0:00:21]} 31. Rf2 {[%clk 0:00:24]}  Kf8 {[%clk 0:00:18]} 32. Qd1 {[%clk 0:00:23]}  Rd8 {[%clk 0:00:17]} 33. Qf1 {[%clk 0:00:18]}  Bh4 {[%clk 0:00:16]} 34. Rd2 {[%clk 0:00:17]}  Bg5 {[%clk 0:00:16]} 35. Qf2 {[%clk 0:00:16]}  Qd6 {[%clk 0:00:14]} 36. Bb3 {[%clk 0:00:15]}  Bh6 {[%clk 0:00:12]} 37. Bd1 {[%clk 0:00:16]}  Qe7 {[%clk 0:00:12]} 38. Bf3 {[%clk 0:00:16]}  Bxf3 {[%clk 0:00:11]} 39. Qxf3 {[%clk 0:00:17]}  Qg5 {[%clk 0:00:11]} 40. Rd3 {[%clk 0:00:18]}  e5 {[%clk 0:00:10]} 41. Ne4 {[%clk 0:00:16]}  Qe7 {[%clk 0:00:07]} 42. Nc5 {[%clk 0:00:16]}  e4 {[%clk 0:00:05]} 43. Qd1 {[%clk 0:00:06]}  exd3 {[%clk 0:00:05]} 44. Qb3 {[%clk 0:00:03]}  Bxe3+ {[%clk 0:00:03]} 0-1


[Site "https://www.chess.com"]

[Event "Titled Tuesday Blitz May 31 Early 2022"]
[White "Agasarov, Benik"]
[Black "Harvey, Marcus R"]
[WhiteFideId "13314823"]
[BlackFideId "400092"]
[WhiteElo "2616"]
[BlackElo "2485"]
[Result "0-1"]
[Round "11"]
[TimeControl "180+1"]
[Date "2022.05.31"]
[WhiteClock "0:01:00"]
[BlackClock "0:01:18"]

1. e4 {[%clk 0:03:00]}  c5 {[%clk 0:02:59]} 2. Nf3 {[%clk 0:02:59]}  d6 {[%clk 0:02:59]} 3. d4 {[%clk 0:02:59]}  cxd4 {[%clk 0:03:00]} 4. Nxd4 {[%clk 0:03:00]}  Nf6 {[%clk 0:03:00]} 5. Nc3 {[%clk 0:03:01]}  a6 {[%clk 0:03:01]} 6. Bg5 {[%clk 0:02:58]}  e6 {[%clk 0:03:01]} 7. f4 {[%clk 0:02:56]}  Be7 {[%clk 0:03:00]} 8. Qf3 {[%clk 0:02:55]}  Qc7 {[%clk 0:03:01]} 9. O-O-O {[%clk 0:02:54]}  Nbd7 {[%clk 0:02:57]} 10. g4 {[%clk 0:02:53]}  h6 {[%clk 0:02:55]} 11. Bxf6 {[%clk 0:02:50]}  Bxf6 {[%clk 0:02:56]} 12. h4 {[%clk 0:02:48]}  Nb6 {[%clk 0:02:55]} 13. g5 {[%clk 0:02:47]}  Bxd4 {[%clk 0:02:51]} 14. Rxd4 {[%clk 0:02:46]}  Qc5 {[%clk 0:02:52]} 15. Rd2 {[%clk 0:02:31]}  Bd7 {[%clk 0:02:52]} 16. g6 {[%clk 0:02:30]}  O-O {[%clk 0:02:50]} 17. Bh3 {[%clk 0:02:21]}  Nc4 {[%clk 0:02:44]} 18. Rg2 {[%clk 0:02:17]}  b5 {[%clk 0:02:40]} 19. Rhg1 {[%clk 0:02:15]}  b4 {[%clk 0:02:37]} 20. Nd1 {[%clk 0:02:14]}  f5 {[%clk 0:02:28]} 21. exf5 {[%clk 0:02:12]}  Bc6 {[%clk 0:02:28]} 22. Qe2 {[%clk 0:02:07]}  Bxg2 {[%clk 0:02:25]} 23. Bxg2 {[%clk 0:02:05]}  Rae8 {[%clk 0:01:57]} 24. Re1 {[%clk 0:02:03]}  Rxf5 {[%clk 0:01:55]} 25. Bh3 {[%clk 0:02:01]}  Rxf4 {[%clk 0:01:49]} 26. Bxe6+ {[%clk 0:02:01]}  Kh8 {[%clk 0:01:49]} 27. Qh2 {[%clk 0:01:47]}  Rf6 {[%clk 0:01:44]} 28. Qh3 {[%clk 0:01:37]}  Ne5 {[%clk 0:01:40]} 29. Bf7 {[%clk 0:01:35]}  Nd3+ {[%clk 0:01:22]} 30. Qxd3 {[%clk 0:01:35]}  Rxe1 {[%clk 0:01:22]} 31. Qh3 {[%clk 0:01:00]}  Rff1 {[%clk 0:01:18]} 0-1


[Site "https://www.chess.com"]

[Event "Titled Tuesday Blitz May 31 Early 2022"]
[White "Agibileg, Uurtsaikh"]
[Black "Sadhwani, Raunak"]
[WhiteFideId "4901606"]
[BlackFideId "35093487"]
[WhiteElo "2205"]
[BlackElo "2616"]
[Result "0-1"]
[Round "11"]
[TimeControl "180+1"]
[Date "2022.05.31"]
[WhiteClock "0:00:02"]
[BlackClock "0:00:34"]

1. d4 {[%clk 0:03:00]}  Nf6 {[%clk 0:02:57]} 2. c4 {[%clk 0:03:01]}  g6 {[%clk 0:02:58]} 3. Nc3 {[%clk 0:03:01]}  Bg7 {[%clk 0:02:59]} 4. e4 {[%clk 0:03:01]}  d6 {[%clk 0:03:00]} 5. Be2 {[%clk 0:03:01]}  O-O {[%clk 0:03:00]} 6. Nf3 {[%clk 0:03:01]}  Bg4 {[%clk 0:03:00]} 7. O-O {[%clk 0:03:01]}  e5 {[%clk 0:02:59]} 8. d5 {[%clk 0:02:57]}  a5 {[%clk 0:02:59]} 9. Ne1 {[%clk 0:02:51]}  Bxe2 {[%clk 0:03:00]} 10. Qxe2 {[%clk 0:02:52]}  Na6 {[%clk 0:03:00]} 11. Nd3 {[%clk 0:02:50]}  Nd7 {[%clk 0:03:00]} 12. Be3 {[%clk 0:02:49]}  b6 {[%clk 0:03:00]} 13. a3 {[%clk 0:02:45]}  f5 {[%clk 0:02:59]} 14. f3 {[%clk 0:02:45]}  Nac5 {[%clk 0:02:48]} 15. Nxc5 {[%clk 0:02:37]}  bxc5 {[%clk 0:02:47]} 16. b3 {[%clk 0:02:30]}  f4 {[%clk 0:02:47]} 17. Bf2 {[%clk 0:02:30]}  g5 {[%clk 0:02:48]} 18. Qb2 {[%clk 0:02:21]}  Rb8 {[%clk 0:02:47]} 19. Nb5 {[%clk 0:02:21]}  h5 {[%clk 0:02:46]} 20. b4 {[%clk 0:02:20]}  axb4 {[%clk 0:02:39]} 21. axb4 {[%clk 0:02:19]}  cxb4 {[%clk 0:02:40]} 22. Qxb4 {[%clk 0:02:17]}  g4 {[%clk 0:02:40]} 23. Kh1 {[%clk 0:02:08]}  Rf7 {[%clk 0:02:17]} 24. Ra7 {[%clk 0:02:00]}  Bf8 {[%clk 0:01:51]} 25. Qa5 {[%clk 0:01:56]}  Nb6 {[%clk 0:01:48]} 26. Rxc7 {[%clk 0:01:40]}  Nxc4 {[%clk 0:01:12]} 27. Qa7 {[%clk 0:01:32]}  Rxc7 {[%clk 0:01:12]} 28. Nxc7 {[%clk 0:01:24]}  Qc8 {[%clk 0:01:12]} 29. Ne6 {[%clk 0:01:19]}  Ra8 {[%clk 0:01:12]} 30. Qc7 {[%clk 0:01:11]}  Qxc7 {[%clk 0:01:12]} 31. Nxc7 {[%clk 0:01:12]}  Ra2 {[%clk 0:01:12]} 32. Bh4 {[%clk 0:01:04]}  Nd2 {[%clk 0:01:08]} 33. Rg1 {[%clk 0:00:54]}  gxf3 {[%clk 0:01:05]} 34. gxf3+ {[%clk 0:00:53]}  Kf7 {[%clk 0:01:05]} 35. Ne6 {[%clk 0:00:19]}  Nxf3 {[%clk 0:01:05]} 36. Ng5+ {[%clk 0:00:19]}  Nxg5 {[%clk 0:01:04]} 37. Rxg5 {[%clk 0:00:20]}  Re2 {[%clk 0:00:54]} 38. Rf5+ {[%clk 0:00:20]}  Ke8 {[%clk 0:00:54]} 39. Rxh5 {[%clk 0:00:20]}  Rxe4 {[%clk 0:00:55]} 40. Rh7 {[%clk 0:00:17]}  Rd4 {[%clk 0:00:50]} 41. Kg2 {[%clk 0:00:17]}  f3+ {[%clk 0:00:50]} 42. Kxf3 {[%clk 0:00:16]}  Rxd5 {[%clk 0:00:51]} 43. Ke4 {[%clk 0:00:15]}  Rd2 {[%clk 0:00:47]} 44. Bg5 {[%clk 0:00:14]}  Rf2 {[%clk 0:00:42]} 45. h4 {[%clk 0:00:11]}  Rf7 {[%clk 0:00:43]} 46. Rh8 {[%clk 0:00:11]}  Kd7 {[%clk 0:00:43]} 47. h5 {[%clk 0:00:09]}  Ke6 {[%clk 0:00:43]} 48. h6 {[%clk 0:00:07]}  d5+ {[%clk 0:00:43]} 49. Kd3 {[%clk 0:00:06]}  Kf5 {[%clk 0:00:43]} 50. h7 {[%clk 0:00:04]}  e4+ {[%clk 0:00:42]} 51. Ke2 {[%clk 0:00:03]}  d4 {[%clk 0:00:37]} 52. Rg8 {[%clk 0:00:02]}  d3+ {[%clk 0:00:34]} 0-1


[Site "https://www.chess.com"]